Cogmind - Beta 17 @@@ ROGUE MODE // 2026.08.13 @ 23:15:13 Player: Alicianrone Result: Destroyed by Y-54 Guardian with Gatling Laser Performance ------------- Evolutions (0) 0 Regions Visited (4) 800 Robots Destroyed (45) 225 Value Destroyed (1092) 1092 Prototype IDs (14) 280 Alien Tech Used (0) 0 Bonus (0) 0 TOTAL SCORE: 2397 Bonus ------- None Cogmind --------- Core Integrity 0/250 Matter 294/300 Energy 125/125 System Corruption 2% Temperature Cool (12) Movement Treading (250) Ox1 Location -7/Recycling Parts ------- > --- POWER (1) -------- Light Ion Engine > --- PROPULSION (2) --- Improved Treads Spiked Treads > --- UTILITY (2) ------ High-capacity Storage Unit Hacking Suite > --- WEAPON (2) ------- Subdweller Machine Gun Flak Cannon > --- INVENTORY (20) --- Light Treads Cargo Legs Wheel Wheel High-capacity Matter Pod (200) Seismic Detector Makeshift Light Armor Plating Makeshift Thermal Plating Improved Trap Extractor (0/6) Subdweller Beam Cannon Heavy Assault Rifle Heavy Assault Rifle Subdweller Machine Gun Heavy Battle Rifle Rocket Launcher Subdweller Shrapnel Launcher Heavy Hammer Piercing Trap Peak State ------------ > --- POWER ------------ Improved Ion Engine > --- PROPULSION ------- Light Treads Spiked Treads > --- UTILITY ---------- High-capacity Storage Unit Makeshift Light Armor Plating > --- WEAPON ----------- Subdweller Machine Gun Makeshift Shrapnel Gun > --- INVENTORY -------- Light Ion Engine Light Treads Cargo Legs Wheel Wheel High-capacity Matter Pod Seismic Detector Makeshift Thermal Plating Hacking Suite Heavy Assault Rifle Heavy Assault Rifle Subdweller Machine Gun Heavy Battle Rifle Rocket Launcher Subdweller Shrapnel Launcher Heavy Hammer Piercing Trap Piercing Trap [Rating: 20] Favorites ----------- Power Improved Ion Engine Engine Improved Ion Engine Propulsion Light Treads Treads Light Treads Wheel Wheel Utility High-capacity Storage Unit Device Seismic Detector Storage High-capacity Storage Unit Hackware Hacking Suite Protection Light Armor Plating Weapon Subdweller Machine Gun Energy Gun EM Pulse Gun Energy Cannon Subdweller Beam Cannon Ballistic Gun Subdweller Machine Gun Ballistic Cannon Light Cannon Launcher Grenade Launcher Special Weapon Mining Laser Build | -11 -10 -10 -10 -7 ------- Run | Yrd Mat Min Sub Rec Slots Evolved . | . . . . . Power . | . . . . . Propulsion . | . . . . . Utility . | . . . . . Weapon . | . . . . . Parts Attached 37 | 7 12 3 12 3 Power 3 | 1 1 1 . . Engine 3 | 1 1 1 . . Core . | . . . . . Reactor . | . . . . . Propulsion 8 | 2 2 1 2 1 Treads 5 | . 2 . 2 1 Leg . | . . . . . Wheel 3 | 2 . 1 . . Hover . | . . . . . Flight . | . . . . . Utility 8 | 2 3 . 2 1 Device 1 | 1 . . . . Storage 3 | 1 2 . . . Processor . | . . . . . Hackware 1 | . . . . 1 Protection 3 | . 1 . 2 . Artifact . | . . . . . Weapon 18 | 2 6 1 8 1 Energy Gun 3 | 2 1 . . . Energy Cannon 1 | . . . 1 . Ballistic Gun 9 | . 4 . 5 . Ballistic Cannon 2 | . . . 1 1 Launcher 2 | . 1 . 1 . Special Weapon 1 | . . 1 . . Impact Weapon . | . . . . . Slashing Weapon . | . . . . . Piercing Weapon . | . . . . . Special Melee Weapon . | . . . . . Unidentified Prototypes . | . . . . . Parts Lost 8 | . 2 1 5 . Power 2 | . 1 . 1 . Propulsion 2 | . . 1 1 . Utility 1 | . . . 1 . Weapon 3 | . 1 . 2 . Highest Loss Streak 2 | . 2 1 2 . To Critical Strikes . | . . . . . Average Backups 15 | 1 6 14 17 16 Power . | . . . . . Propulsion 3 | 1 2 3 4 4 Utility 3 | . 1 3 3 4 Weapon 7 | . 3 7 8 8 Tool/Special . | . . . . . Unused Backups 11 | . . . 1 10 Power . | . . . . . Propulsion 2 | . . . . 2 Utility 2 | . . . . 2 Weapon 7 | . . . 1 6 Tool/Special . | . . . . . Average Slot Usage (%) 99 | . 99 99 99 100 Engine 13 | . 13 14 13 14 Treads 20 | . 6 . 27 28 Wheel 7 | . 21 27 . . Device 11 | . 10 14 12 . Storage 14 | . 14 14 14 14 Protection 1 | . 3 . . 3 Energy Gun 1 | . 9 . . . Energy Cannon 5 | . . . 7 . Ballistic Gun 19 | . 18 27 18 25 Ballistic Cannon 1 | . . . 1 2 Peak Build Rating 20 | 7 10 12 20 20 Average Rating 13 | 4 7 10 14 18 On Entrance 9 | . 7 10 12 19 Avg Prop Armor Cover (%) . | . . . . . Naked Turns . | . . . . . Heaviest Build 63 | 14 50 54 63 53 Greatest Support 43 | 20 40 20 40 43 Greatest Overweight (x) 5 | . 2 5 2 1 Average Overweight (x) 1 | . . 2 1 1 Largest Inventory Capacity 20 | 8 20 20 20 20 Average Capacity 19 | 7 14 20 20 20 Most Carried 20 | 3 12 17 20 20 Average Carried 16 | 2 6 14 19 19 Final Capacity 20 | 8 20 20 20 20 Final Carried 19 | 3 12 17 19 19 Class Distribution -------------------- 81% | Mutant 18% | Scavenger-Mutant Dominant Class ---------------- Mutant | -10/Materials Mutant | -10/Mines Mutant | -10/Subcaves Scavenger-Mutant | -7/Recycling Resources | -11 -10 -10 -10 -7 ----------- Run | Yrd Mat Min Sub Rec Matter Collected 1701 | 222 346 406 534 193 Remotely . | . . . . . Salvage Created 1302 | 18 602 16 666 . Parts 94 | 3 41 . 50 . Haulers Intercepted 2 | . 2 . . . Recyclers Shooed 2 | . 2 . . . Parts Field Recycled . | . . . . . Retrieved Matter . | . . . . . Parts Self-Destructed 13 | . . . 13 . Prevented . | . . . . . Parts Restored . | . . . . . Kills | -11 -10 -10 -10 -7 ------- Run | Yrd Mat Min Sub Rec Combat Hostiles Destroyed 35 | . 14 1 20 . Guns 13 | . 5 1 7 . Cannons 6 | . . . 6 . AOE 16 | . 9 . 7 . Classes Destroyed 12 | 1 7 1 3 . Builder 1 | . 1 . . . Tunneler 1 | 1 . . . . Hauler 2 | . 2 . . . Recycler 1 | . 1 . . . Operator 2 | . 2 . . . Turret 2 | . . . 2 . Watcher 2 | . 2 . . . Swarmer 13 | . 6 . 7 . Grunt 10 | . 8 . 2 . Cobbler 1 | . . . 1 . Subdweller 11 | . . . 11 . Assembled 1 | . . 1 . . Best Kill Streak 9 | 1 9 1 6 . Combat Bots Only 7 | . 7 1 4 . Max Kills in Single Turn 5 | 1 5 1 3 . Gunslinging . | . . . . . Exploded 4 | . 4 . 3 . Melee . | . . . . . Uniques/NPCs Destroyed . | . . . . . Combat | -11 -10 -10 -10 -7 -------- Run | Yrd Mat Min Sub Rec Hostile Shots Fired 148 | . 43 4 89 12 Missed 52 | . 10 . 40 2 Hits 96 | . 33 4 49 10 Melee 4 | . . 4 . . Projectile 92 | . 33 . 49 10 AOE 1 | . . . 1 . Critical Strikes 3 | . . . 3 . Damage Taken 1499 | . 442 99 883 75 Core 251 | . 72 22 134 23 Absorbed by Shields . | . . . . . Ignored by Resistances 9 | . . . 9 . Core Remaining (%) 100 | 100 . . . . Volleys Fired 216 | 1 68 13 133 1 Largest 2 | 2 2 2 2 1 Hottest 100 | 80 60 100 100 37 Shots Fired 313 | 2 127 18 165 1 Gun 266 | 2 124 10 130 . Cannon 29 | . . . 28 1 Launcher 8 | . 3 . 5 . Special 10 | . . 8 2 . Kinetic 230 | . 89 10 130 1 Thermal 51 | 1 12 8 30 . Explosive 8 | . 3 . 5 . Electromagnetic 24 | 1 23 . . . Robot Hit Streak 12 | 1 12 4 12 10 Robot Miss Streak 9 | 1 9 3 3 . Penetration Max . | . . . . . Secondary Targets 1 | . 1 . . . Max Gunslinging Chain 1 | . 1 . . . Shots Hit Robots 139 | 1 62 6 69 1 Core Hits 77 | 1 34 2 37 3 Critical Kills 1 | . . . 1 . Critical Parts Destroyed . | . . . . . Critical Strikes 1 | . . . 1 . Destroy 1 | . . . 1 . Melee Attacks . | . . . . . Impact . | . . . . . Slashing . | . . . . . Piercing . | . . . . . Sneak Attacks . | . . . . . Combat Hostiles . | . . . . . Follow-up Attacks . | . . . . . Damage Inflicted 3279 | 12 1446 85 1698 38 Guns 1668 | 12 735 85 836 . Cannons 534 | . . . 496 38 Explosions 1077 | . 711 . 366 . Melee . | . . . . . Ramming . | . . . . . Kinetic 1462 | . 503 85 836 38 Thermal 849 | 12 341 . 496 . Explosive 821 | . 455 . 366 . Electromagnetic 147 | . 147 . . . Impact . | . . . . . Slashing . | . . . . . Piercing . | . . . . . Highest Corruption 2 | . . 2 2 2 Average Corruption 2 | . . 2 2 2 Corruption Purged . | . . . . . Corruption Blocked . | . . . . . Effects 60 | . . 3 55 2 Message Errors 12 | . . 1 10 1 Matter Fused 14 | . . . 14 . Heat Flow Errors 9 | . . . 9 . Energy Discharges 12 | . . 1 10 1 Parts Fused 2 | . . . 2 . Data Loss (minor) 4 | . . . 4 . Data Loss (major) 1 | . . . 1 . Misfires 5 | . . . 5 . Alerts 1 | . . 1 . . Overload Shots . | . . . . . Overflow Damage 24 | . . . 24 . Projectiles . | . . . . . Explosions 24 | . . . 24 . Melee . | . . . . . Knockbacks . | . . . . . Impact . | . . . . . Kinetic . | . . . . . Secondary . | . . . . . Self-Inflicted Damage 103 | . 87 . 16 . Shots 5 | . 4 . 1 . Rammed . | . . . . . Targets Rammed . | . . . . . Kicked . | . . . . . Crushed . | . . . . . Highest Temperature 268 | 18 124 40 268 . Average Temperature 34 | 12 29 15 48 . Received Heat Transfer 718 | . 165 . 523 30 Siege Activations . | . . . . . Martial Activations . | . . . . . Shielding Activations . | . . . . . Robots Disrupted . | . . . . . Combat Hostiles . | . . . . . Robots Corrupted . | . . . . . Combat Hostiles . | . . . . . Parts Fried . | . . . . . Impact Corruptions . | . . . . . Robots Melted . | . . . . . Combat Hostiles . | . . . . . Parts Melted 2 | . . . 2 . Heat Transferred 1241 | 25 550 . 666 . Parts Sabotaged . | . . . . . Parts Stolen . | . . . . . Parts Stripped . | . . . . . Power Chain Reactions 3 | . 3 . . . Alert | -11 -10 -10 -10 -7 ------- Run | Yrd Mat Min Sub Rec Maximum Alert Level 1 | . 1 . . . Low Security (%) 92 | 100 83 100 . 100 Level 1 7 | . 16 . . . Level 2 . | . . . . . Level 3 . | . . . . . Level 4 . | . . . . . Level 5 . | . . . . . High Security . | . . . . . Max Security . | . . . . . Peak Influence 228 | 5 228 44 . 86 Initial 86 | . . 44 . 86 Average 62 | 1 121 4 . 49 Influence Increases 933 | 5 509 41 315 63 Destroy 0b10 Robot/C 540 | . 280 40 220 . Destroy 0b10 Robot/NC 45 | 5 40 . . . Destroy Leader 108 | . 88 . 20 . Successful Hack 38 | . 5 . . 33 Select Force Hacks 90 | . 60 . . 30 Disable Machine 15 | . 15 . . . Destroy Structure 22 | . 21 1 . . Lose Combat Pursuer 75 | . . . 75 . Influence Decreases 933 | 5 394 156 134 244 Entered New Map 166 | . . 71 . 95 Time Decay 707 | 5 374 65 114 149 Lost Part 40 | . 20 . 20 . Lost Ally 20 | . . 20 . . Squads Dispatched 6 | . 6 . . . Investigation 5 | . 5 . . . Extermination . | . . . . . Reinforcement 1 | . 1 . . . Assault . | . . . . . Garrison . | . . . . . Intercept . | . . . . . Searches Triggered . | . . . . . Construction Impeded . | . . . . . Haulers Reinforced . | . . . . . Active Scanning Responses . | . . . . . Cargo Convoy Interrupts . | . . . . . Stealth | -11 -10 -10 -10 -7 --------- Run | Yrd Mat Min Sub Rec Distress Signals 1 | . 1 . . . Communications Jammed . | . . . . . Distress Signals . | . . . . . Times Spotted 53 | . 27 1 24 1 Peak Tracking Total 6 | . 6 1 5 2 Tactical Retreats 1 | . . . 1 . Traps | -11 -10 -10 -10 -7 ------- Run | Yrd Mat Min Sub Rec Traps Triggered 3 | . 2 . 1 . Indirectly . | . . . . . Trap Hack Attempts . | . . . . . Triggered . | . . . . . Disarmed . | . . . . . Reprogrammed . | . . . . . Reused . | . . . . . Traps Extracted . | . . . . . Installed 1 | . . . . 1 Triggered . | . . . . . Most Traps Carried 2 | . . . 2 2 Machines | -11 -10 -10 -10 -7 ---------- Run | Yrd Mat Min Sub Rec Machines Disabled 4 | . 1 . 3 . Max in Single Turn 2 | . 1 . 2 . Machines Repaired . | . . . . . Machines Dismantled . | . . . . . Machines Sabotaged . | . . . . . Overloaded Fab Kills . | . . . . . Hacking | -11 -10 -10 -10 -7 --------- Run | Yrd Mat Min Sub Rec Machines Accessed 13 | . 7 . 1 5 Terminals 9 | . 5 . . 4 Fabricators . | . . . . . Repair Stations . | . . . . . Recycling Units 3 | . 2 . . 1 Scanalyzers . | . . . . . Garrison Access . | . . . . . Total Hacks 21 | . 10 . 1 10 Successful 11 | . 6 . 1 4 Failed 10 | . 4 . . 6 Catastrophic 4 | . 2 . . 2 Database Lockouts . | . . . . . Manual 20 | . 10 . . 10 Terminals 17 | . 8 . . 9 Fabricators . | . . . . . Repair Stations . | . . . . . Recycling Units 3 | . 2 . . 1 Scanalyzers . | . . . . . Garrison Access . | . . . . . Terminal Hacks 4 | . 3 . 1 . Robot Schematic 1 | . 1 . . . Locate Traps 1 | . 1 . . . Hauler Manifests 1 | . 1 . . . Proto ID Catalog 1 | . . . 1 . Fabricator Hacks . | . . . . . Repair Station Hacks . | . . . . . Recycling Unit Hacks . | . . . . . Scanalyzer . | . . . . . Garrison Access Hacks . | . . . . . Unauthorized Hacks 7 | . 3 . . 4 Terminals 4 | . 1 . . 3 Assimilate 1 | . 1 . . . Botnet 1 | . . . . 1 Skim 2 | . . . . 2 Fabricators . | . . . . . Repair Stations . | . . . . . Recycling Units 3 | . 2 . . 1 Tunnel 3 | . 2 . . 1 Scanalyzers . | . . . . . Garrison Access . | . . . . . Data Cores Recovered 1 | . 1 . . . Used . | . . . . . Hacking Detections 9 | . 5 . . 4 Full Trace Events . | . . . . . Feedback Events . | . . . . . Feedback Blocked . | . . . . . Robot Schematics Acquired 1 | . 1 . . . Robots Built . | . . . . . Authchips . | . . . . . Time . | . . . . . Total Robot Build Rating . | . . . . . Part Schematics Acquired . | . . . . . Parts Built . | . . . . . Authchips . | . . . . . Time . | . . . . . Total Part Build Rating . | . . . . . Part Studies Acquired . | . . . . . Parts Repaired . | . . . . . Time . | . . . . . Parts Recycled . | . . . . . Recycled Matter . | . . . . . Retrieved Matter . | . . . . . Retrieved Components . | . . . . . Parts Scanalyzed . | . . . . . Part Schematics Acquired . | . . . . . Parts Damaged . | . . . . . Bothacking | -11 -10 -10 -10 -7 ------------ Run | Yrd Mat Min Sub Rec Used RIF Installer . | . . . . . Robots Hacked . | . . . . . Non-combat . | . . . . . Combat . | . . . . . Robot Hacks Applied . | . . . . . Relay Couplers Released . | . . . . . Fabnet Peak Effective % . | . . . . . Robots Rewired . | . . . . . Allies Hacked . | . . . . . Hacks Repelled . | . . . . . Allies | -11 -10 -10 -10 -7 -------- Run | Yrd Mat Min Sub Rec Total Allies 3 | . . 3 . . Largest Group 3 | . . 3 . . Highest-Rated Group 40 | . . 40 . . Highest-Rated Ally 16 | . . 16 . . Total Orders . | . . . . . Ally Attacks 16 | . . 16 . . Total Damage 126 | . . 126 . . Kills 2 | . . 2 . . Allies Corrupted . | . . . . . Allies Melted . | . . . . . Intel | -11 -10 -10 -10 -7 ------- Run | Yrd Mat Min Sub Rec Active Infowar (turns) 5070 | 23 663 770 3614 . Seismic 5070 | 23 663 770 3614 . Robot Analysis Total . | . . . . . Derelict Logs Recovered 2 | . . 1 1 . Drone Launches . | . . . . . Drone Recoveries . | . . . . . Exploration | -11 -10 -10 -10 -7 ------------- Run | Yrd Mat Min Sub Rec Turns Passed 5951 | 54 878 770 3947 302 Spaces Moved 2753 | 42 577 617 1400 117 Core 1 | 1 . . . . Treads 1551 | . 89 . 1345 117 Legs . | . . . . . Wheels 1201 | 41 488 617 55 . Hover . | . . . . . Flight . | . . . . . Fastest Speed 50 | 50 80 110 110 250 Average Speed 181 | 79 105 110 242 250 Slowest Speed 250 | 80 160 155 250 250 Overloaded Moves . | . . . . . Propulsion Burnouts . | . . . . . Robots Hopped . | . . . . . Potential Cave-ins . | . . . . . Cave-ins Triggered . | . . . . . Exploration Rate (%) 57 | 4 96 97 71 19 Regions Visited 4 Branch Regions 3 Pre-discovered Areas 3 | . 2 . . 1 Known Exits Taken . | . . . . . Unknown Exits Taken 4 | 1 1 1 1 . Scrap Searched 10 | . . 3 7 . Spaces Dug 3 | . . . 3 . Terrain Destroyed 53 | . 19 1 33 . Melee . | . . . . . Projectile 9 | . . 1 8 . AOE 44 | . 19 . 25 . Terrain Rammed . | . . . . . Walls Destroyed . | . . . . . Machines Disabled . | . . . . . Actions | -11 -10 -10 -10 -7 --------- Run | Yrd Mat Min Sub Rec Total 3355 | 56 717 671 1785 126 Wait 272 | 4 33 34 201 . Move 2749 | 41 576 616 1399 117 Hop . | . . . . . Pick Up 33 | 3 10 4 15 1 Fast Attach 16 | 7 4 1 2 2 Attach 8 | . 2 . 6 . Detach 2 | . 2 . . . Swap 38 | . 17 3 17 1 Drop 20 | . 5 . 12 3 Fire 216 | 1 68 13 133 1 Melee . | . . . . . Ram . | . . . . . Kick . | . . . . . Crush . | . . . . . Escape Stasis . | . . . . . Rewire . | . . . . . Trap 1 | . . . . 1 Miscellaneous . | . . . . . Route ------- -11/Scrapyard -10/Materials (discovered 6 exits: [*Mat x3] / [*Min x2] / *Sub) -10/Mines (discovered 4 exits: [*Mat x2] / [*Exi] / *Sub) -10/Subcaves (discovered 3 exits: [*Mat x2] / *Rec) -7/Recycling History --------- Turn | Location | Event 14 | -11/Scrapyard | Discovered new exit (range 16) 55 | -11/Scrapyard | Entered Materials 305 | -10/Materials | Build established: Mutant 332 | -10/Materials | Discovered new exit (range 12) 411 | -10/Materials | Discovered new exit (range 10) 426 | -10/Materials | Destroyed 7 combat bots 494 | -10/Materials | Discovered new exit (range 7) 494 | -10/Materials | Discovered new exit (range 16) 628 | -10/Materials | Discovered new exit (range 15) 782 | -10/Materials | Discovered new exit (range 15) 933 | -10/Materials | Entered Mines 936 | -10/Mines | Met a Derelict bent on vengeance 964 | -10/Mines | Assisted by bots powering up and referring to "LRC-V3" 1014 | -10/Mines | Received a Rocket Launcher from a helpful Derelict 1161 | -10/Mines | Learned Materials security intel 1202 | -10/Mines | Excavation squad dispatched 1202 | -10/Mines | A large section of the Mines collapsed 1258 | -10/Mines | Deemed a non-threat by the Exiles lab entrance 1258 | -10/Mines | Discovered new exit (range 5) 1348 | -10/Mines | Found a Scrap Suit stashed away for nefarious purposes 1402 | -10/Mines | Discovered new exit (range 10) 1454 | -10/Mines | Joined a pair of Derelicts in attacking an 0b10 outpost 1676 | -10/Mines | Discovered new exit (range 9) 1684 | -10/Mines | Discovered new exit (range 10) 1703 | -10/Mines | Entered Subcaves 1704 | -10/Subcaves | Approached by a straggling Scientist 1825 | -10/Subcaves | Learned Materials stockpile data 1923 | -10/Subcaves | Core integrity fell below 50% 2062 | -10/Subcaves | Disturbed a concealed Subdweller 2420 | -10/Subcaves | Discovered new exit (range 14) 2506 | -10/Subcaves | Disturbed a concealed Subdweller 2718 | -10/Subcaves | Shifting Twisted Machinery released Spk. Treads 2756 | -10/Subcaves | Shifting Twisted Machinery released Sub. Power Source 2789 | -10/Subcaves | Shifting Twisted Machinery released Battle Rifle 2797 | -10/Subcaves | Shifting Twisted Machinery released Sub. Laser 2919 | -10/Subcaves | Ambushed by Subdweller buried in earth 2919 | -10/Subcaves | Ambushed by Subdweller buried in earth 3027 | -10/Subcaves | Ambushed by Subdweller buried in earth 3296 | -10/Subcaves | Shifting Twisted Machinery released Sub. Shrapnel Launcher 3306 | -10/Subcaves | Shifting Twisted Machinery released Sub. Power Source 3938 | -10/Subcaves | Build established: Scavenger-Mutant 4469 | -10/Subcaves | Build established: Mutant 4782 | -10/Subcaves | Discovered new exit (range 15) 4791 | -10/Subcaves | A swath of the cavern ceiling suddenly collapsed 4826 | -10/Subcaves | A swath of the cavern ceiling suddenly collapsed 5158 | -10/Subcaves | Visited 4L-MR0's lab 5181 | -10/Subcaves | Found Cargo Legs 5505 | -10/Subcaves | Core integrity fell below 20% 5522 | -10/Subcaves | Discovered new exit (range 13) 5650 | -10/Subcaves | Entered Recycling 5952 | -7/Recycling | Destroyed by Y-54 Guardian with Gatling Laser Last Messages --------------- Awaiting botnet instructions. 05822_ Connecting with Recycling Unit... >>Force(Tunnel) DISCOVERED[-6/Extension] 05840_ S&LGVMMNMR1C N YX75H 3PS%ZJP8JSGT2I 05869_ Acquired 93 matter. 05874_ Dropped Lgt. Treads. 05875_ System corrupted: Energy discharge (-32). 05875_ Acquired Imp. Treads. 05876_ Acquired 68 matter. 05891_ R-06 Scavenger collects Lgt. Treads. 05894_ Acquired Imp. Trap Extractor. 05895_ Dropped Mak. Shrapnel Gun. 05898_ Acquired Flak Cannon. 05899_ Acquired 32 matter. 05902_ R-06 Scavenger collects Mak. Shrapnel Gun. 05944_ Dropped Piercing Trap. 05945_ Installed Piercing Trap. 05947_ Y-54 Guardian springs to life. Map ----- +----------------------------------------------------+ | ?????????????????????????????????????????????????? | | ?????????????????????????????????????????????????? | | ?????????????????????????????????????????????????? | | ?????????????????????????????????????????????????? | | ?????????????????????????????????????????????????? | | ?????????????????????????????????????????????????? | | ?????????????????????????????????????????????????? | | ?????????????????????????????????????????????????? | | ?????????????????????????????????????????????????? | | ?????????????????????????????????????????????????? | | ?????????????????????????????????????????????????? | | ???##????????????????????????????????????????????? | | ### ##???????????????????????????????????????????? | | #???????????????????????????????????????????? | | #???????????????????????????????????????????? | | #???????????????????????????????????????????? | | #???????????????????????????????????????????? | | #???????????????????????????????????????????? | | #???????????????????????????????????????????? | | #???????????????????????????????????????????? | | #???????????????????????????????????????????? | | #???????????????????????????????????????????? | | #####?????????#########??????????????????????????? | | ###############"""T"""############+#######???????? | | r ??????? | | @ ??????? | | r r ^Y r ??????? | | ####+#########+#########+#### ####+###???????????? | | ### #?# #?# #?????????????????????? | | "" #?# ### #?????????????????????? | | """ #?# ""# !#?????????????????????? | | "T #?# Y"# #?????????????????????? | | """ #?# """" ""# #?????????????????????? | | "" #?# """" ### #?????????????????????? | | ### #?# """" #?# !#?????????????????????? | | ??# #?# #?#! #?????????????????????? | | ??# #?###########?#! #?????????????????????? | | ??#"" #?????????????# %#?????????????????????? | | ??#"T #?????????????# ! #?????????????????????? | | ??#"" #?????????????# ! #?????????????????????? | | ??# #?????????????# #?????????????????????? | | ??######?????????????# % =#?????????????????????? | | ?????????????????????#######?????????????????????? | | ?????????????????????????????????????????????????? | | ?????????????????????????????????????????????????? | | | | | | | | | | | +----------------------------------------------------+ Best States ------------- Heat Dissipation 25 Energy Generation 12 Energy Capacity 265 Matter Stores 300 Matter Capacity 300 Sight Range 16 Terrain Scan Density 10 Armor Coverage 150 Resistance: TH 10 Evasion (%) 44 Recoil Reduction 2 Offensive Hacking 10 Item Schematics ----------------- None Robot Schematics ------------------ M-13 Machinist | -10/Materials | Hacked Fabricated ------------ Nothing Repaired ---------- Nothing Studied --------- None Alien Tech Used ----------------- None Achievements -------------- None Challenges ------------ None Game ------ Seed DiametricDoorBeam Manual? 0 Play Time 00:23:10 Cumulative 1010.5 hours Start 2026.08.13 @ 22:53:33 End 2026.08.13 @ 23:15:13 Sessions 1 Manual Loads 0 Difficulty Rogue Special Mode None Game No. 278 Rogue 278 Adventurer 0 Explorer 0 Win Type - Total 44 Types 13/9/10/2/2/0/4/1/1/2 Lore% 97 Gallery% 91 Achievement% 87 Wizard Run 0 Options --------- Layout 1 ASCII 0 Keyboard 0 Movement Mouse Keybinds 0 Fullscreen 2 Font 32/SmallcapsGlow Map View 50x35 Zoom Use 0% Tactical HUD 1 Map Filters NONE Filters NONE Steam 1 RUN: 3efc8937-a2a3-426c-a679-054ace83ebc5